[Event "Titled Tuesday Blitz May 03 Early 2022"]
[White "Gurevich, Dmitry"]
[Black "Pasti, Aron"]
[WhiteFideId "2000407"]
[BlackFideId "785857"]
[WhiteElo "2506"]
[BlackElo "2133"]
[Result "0-1"]
[Round "02"]
[TimeControl "180+1"]
[Date "2022.05.03"]
[WhiteClock "0:00:11"]
[BlackClock "0:00:22"]

1. d4 {[%clk 0:03:00]}  d5 {[%clk 0:02:58]} 2. c4 {[%clk 0:02:59]}  e6 {[%clk 0:02:58]} 3. Nc3 {[%clk 0:02:57]}  Nf6 {[%clk 0:02:57]} 4. Nf3 {[%clk 0:02:55]}  dxc4 {[%clk 0:02:57]} 5. Qa4+ {[%clk 0:02:51]}  c6 {[%clk 0:02:56]} 6. Qxc4 {[%clk 0:02:50]}  b5 {[%clk 0:02:57]} 7. Qb3 {[%clk 0:02:48]}  Nbd7 {[%clk 0:02:56]} 8. Bg5 {[%clk 0:02:46]}  Bb7 {[%clk 0:02:56]} 9. e3 {[%clk 0:02:46]}  a6 {[%clk 0:02:55]} 10. a4 {[%clk 0:02:43]}  b4 {[%clk 0:02:55]} 11. Ne4 {[%clk 0:02:41]}  Qb6 {[%clk 0:02:39]} 12. Bxf6 {[%clk 0:02:34]}  gxf6 {[%clk 0:02:40]} 13. a5 {[%clk 0:02:28]}  Qc7 {[%clk 0:02:38]} 14. Bd3 {[%clk 0:02:20]}  f5 {[%clk 0:02:37]} 15. Ned2 {[%clk 0:02:18]}  c5 {[%clk 0:02:35]} 16. O-O {[%clk 0:02:12]}  cxd4 {[%clk 0:02:35]} 17. exd4 {[%clk 0:02:10]}  Bg7 {[%clk 0:02:35]} 18. Rfc1 {[%clk 0:02:07]}  Qd6 {[%clk 0:02:35]} 19. Nc4 {[%clk 0:01:56]}  Qe7 {[%clk 0:02:35]} 20. Be2 {[%clk 0:01:50]}  O-O {[%clk 0:02:33]} 21. Ra4 {[%clk 0:01:50]}  Rac8 {[%clk 0:02:14]} 22. Qxb4 {[%clk 0:01:48]}  Qxb4 {[%clk 0:02:08]} 23. Rxb4 {[%clk 0:01:48]}  Bxf3 {[%clk 0:02:09]} 24. gxf3 {[%clk 0:01:33]}  Bxd4 {[%clk 0:02:10]} 25. Rd1 {[%clk 0:01:30]}  Bc5 {[%clk 0:02:03]} 26. Rb7 {[%clk 0:01:28]}  Nf6 {[%clk 0:02:03]} 27. Nd6 {[%clk 0:01:22]}  Rcd8 {[%clk 0:01:58]} 28. Nc4 {[%clk 0:01:16]}  Rxd1+ {[%clk 0:01:53]} 29. Bxd1 {[%clk 0:01:15]}  Rd8 {[%clk 0:01:53]} 30. Be2 {[%clk 0:01:13]}  Nh5 {[%clk 0:01:53]} 31. Ne3 {[%clk 0:01:05]}  Nf4 {[%clk 0:01:33]} 32. Bxa6 {[%clk 0:01:03]}  Ra8 {[%clk 0:01:33]} 33. Rb5 {[%clk 0:00:56]}  Nd3 {[%clk 0:00:44]} 34. Rb3 {[%clk 0:00:28]}  Nxf2 {[%clk 0:00:37]} 35. Kxf2 {[%clk 0:00:23]}  f4 {[%clk 0:00:30]} 36. Bd3 {[%clk 0:00:21]}  Bxe3+ {[%clk 0:00:30]} 37. Ke2 {[%clk 0:00:20]}  Rxa5 {[%clk 0:00:31]} 38. Be4 {[%clk 0:00:19]}  Rh5 {[%clk 0:00:29]} 39. Rb7 {[%clk 0:00:18]}  Rxh2+ {[%clk 0:00:29]} 40. Kd3 {[%clk 0:00:18]}  Rd2+ {[%clk 0:00:28]} 41. Kc3 {[%clk 0:00:18]}  h5 {[%clk 0:00:26]} 42. Bc6 {[%clk 0:00:18]}  Rd8 {[%clk 0:00:23]} 43. Rb5 {[%clk 0:00:11]}  Rc8 {[%clk 0:00:22]} 0-1


[Site "https://www.chess.com"]

[Event "Titled Tuesday Blitz May 03 Early 2022"]
[White "Halvax, Georg"]
[Black "Bacrot, Etienne"]
[WhiteFideId "1619543"]
[BlackFideId "605506"]
[WhiteElo "2403"]
[BlackElo "2673"]
[Result "0-1"]
[Round "02"]
[TimeControl "180+1"]
[Date "2022.05.03"]
[WhiteClock "0:01:37"]
[BlackClock "0:01:14"]

1. d4 {[%clk 0:03:00]}  d5 {[%clk 0:02:56]} 2. c4 {[%clk 0:03:00]}  e6 {[%clk 0:02:56]} 3. Nf3 {[%clk 0:03:00]}  Nf6 {[%clk 0:02:56]} 4. e3 {[%clk 0:03:01]}  Be7 {[%clk 0:02:56]} 5. a3 {[%clk 0:03:00]}  O-O {[%clk 0:02:56]} 6. Nbd2 {[%clk 0:02:59]}  b6 {[%clk 0:02:56]} 7. Be2 {[%clk 0:02:59]}  Bb7 {[%clk 0:02:56]} 8. O-O {[%clk 0:02:59]}  Nbd7 {[%clk 0:02:56]} 9. b4 {[%clk 0:02:55]}  c5 {[%clk 0:02:50]} 10. bxc5 {[%clk 0:02:51]}  bxc5 {[%clk 0:02:50]} 11. Bb2 {[%clk 0:02:50]}  cxd4 {[%clk 0:02:42]} 12. Nxd4 {[%clk 0:02:48]}  Rb8 {[%clk 0:02:38]} 13. Rb1 {[%clk 0:02:43]}  Nc5 {[%clk 0:02:28]} 14. cxd5 {[%clk 0:02:40]}  Nxd5 {[%clk 0:02:23]} 15. Bf3 {[%clk 0:02:30]}  Qd7 {[%clk 0:01:59]} 16. Nc4 {[%clk 0:02:17]}  Bf6 {[%clk 0:01:50]} 17. Ba1 {[%clk 0:02:09]}  Ba6 {[%clk 0:01:46]} 18. Qc2 {[%clk 0:01:54]}  Qa4 {[%clk 0:01:43]} 19. Qxa4 {[%clk 0:01:47]}  Nxa4 {[%clk 0:01:42]} 20. Rxb8 {[%clk 0:01:47]}  Rxb8 {[%clk 0:01:41]} 21. Rc1 {[%clk 0:01:48]}  Bxc4 {[%clk 0:01:35]} 22. Nc6 {[%clk 0:01:39]}  Rb6 {[%clk 0:01:18]} 23. Na5 {[%clk 0:01:37]}  Ba6 {[%clk 0:01:14]} 0-1


[Site "https://www.chess.com"]

[Event "Titled Tuesday Blitz May 03 Early 2022"]
[White "Hamley, Ryan"]
[Black "Gatterer, Florian"]
[WhiteFideId "30959497"]
[BlackFideId "811688"]
[WhiteElo "2495"]
[BlackElo "2218"]
[Result "0-1"]
[Round "02"]
[TimeControl "180+1"]
[Date "2022.05.03"]
[WhiteClock "0:00:01"]
[BlackClock "0:00:22"]

1. Nf3 {[%clk 0:02:59]}  Nf6 {[%clk 0:02:58]} 2. b3 {[%clk 0:02:58]}  g6 {[%clk 0:02:56]} 3. Bb2 {[%clk 0:02:57]}  Bg7 {[%clk 0:02:56]} 4. e3 {[%clk 0:02:58]}  O-O {[%clk 0:02:55]} 5. d4 {[%clk 0:02:55]}  c5 {[%clk 0:02:55]} 6. Nbd2 {[%clk 0:02:53]}  cxd4 {[%clk 0:02:54]} 7. Nxd4 {[%clk 0:02:51]}  d5 {[%clk 0:02:52]} 8. N2f3 {[%clk 0:02:50]}  Nc6 {[%clk 0:02:48]} 9. Be2 {[%clk 0:02:43]}  Re8 {[%clk 0:02:47]} 10. Nxc6 {[%clk 0:02:41]}  bxc6 {[%clk 0:02:46]} 11. Ne5 {[%clk 0:02:41]}  Qc7 {[%clk 0:02:39]} 12. O-O {[%clk 0:02:37]}  Ne4 {[%clk 0:02:15]} 13. f4 {[%clk 0:02:12]}  a5 {[%clk 0:02:03]} 14. a4 {[%clk 0:01:56]}  Ba6 {[%clk 0:02:00]} 15. Bxa6 {[%clk 0:01:53]}  Rxa6 {[%clk 0:02:00]} 16. Qe2 {[%clk 0:01:53]}  Raa8 {[%clk 0:01:48]} 17. Rad1 {[%clk 0:01:30]}  Bf6 {[%clk 0:01:42]} 18. g3 {[%clk 0:00:56]}  Bg7 {[%clk 0:01:41]} 19. Kg2 {[%clk 0:00:56]}  e6 {[%clk 0:01:41]} 20. h3 {[%clk 0:00:54]}  Qb7 {[%clk 0:01:35]} 21. h4 {[%clk 0:00:46]}  h5 {[%clk 0:01:33]} 22. Rb1 {[%clk 0:00:42]}  Bxe5 {[%clk 0:01:20]} 23. Bxe5 {[%clk 0:00:42]}  f6 {[%clk 0:01:20]} 24. Ba1 {[%clk 0:00:41]}  c5 {[%clk 0:01:16]} 25. Kh2 {[%clk 0:00:38]}  f5 {[%clk 0:01:10]} 26. Be5 {[%clk 0:00:36]}  Kf7 {[%clk 0:01:07]} 27. Rfd1 {[%clk 0:00:29]}  Re7 {[%clk 0:01:05]} 28. c4 {[%clk 0:00:27]}  Rd8 {[%clk 0:00:54]} 29. Qe1 {[%clk 0:00:25]}  Red7 {[%clk 0:00:50]} 30. cxd5 {[%clk 0:00:18]}  Rxd5 {[%clk 0:00:50]} 31. Rxd5 {[%clk 0:00:18]}  Rxd5 {[%clk 0:00:49]} 32. Rb2 {[%clk 0:00:18]}  Qb4 {[%clk 0:00:44]} 33. Qxb4 {[%clk 0:00:16]}  cxb4 {[%clk 0:00:44]} 34. Rc2 {[%clk 0:00:15]}  Rd2+ {[%clk 0:00:44]} 35. Rxd2 {[%clk 0:00:15]}  Nxd2 {[%clk 0:00:45]} 36. Kg2 {[%clk 0:00:11]}  Nxb3 {[%clk 0:00:45]} 37. Kf2 {[%clk 0:00:12]}  Nc5 {[%clk 0:00:43]} 38. Ke2 {[%clk 0:00:10]}  b3 {[%clk 0:00:41]} 39. Kd2 {[%clk 0:00:10]}  Nxa4 {[%clk 0:00:39]} 40. Bc7 {[%clk 0:00:08]}  Nc5 {[%clk 0:00:38]} 41. Bxa5 {[%clk 0:00:07]}  Ne4+ {[%clk 0:00:36]} 42. Kd3 {[%clk 0:00:05]}  Nxg3 {[%clk 0:00:33]} 43. Kc3 {[%clk 0:00:06]}  Nf1 {[%clk 0:00:25]} 44. Bb6 {[%clk 0:00:04]}  Nh2 {[%clk 0:00:24]} 45. Kxb3 {[%clk 0:00:03]}  Nf3 {[%clk 0:00:24]} 46. Bd8 {[%clk 0:00:03]}  Ke8 {[%clk 0:00:23]} 47. Bf6 {[%clk 0:00:02]}  Kd7 {[%clk 0:00:22]} 48. Kc4 {[%clk 0:00:03]}  Kc6 {[%clk 0:00:22]} 49. Be7 {[%clk 0:00:01]}  Kd7 {[%clk 0:00:22]} 50. Bf6 {[%clk 0:00:01]}  Kd6 {[%clk 0:00:22]} 0-1


[Site "https://www.chess.com"]

[Event "Titled Tuesday Blitz May 03 Early 2022"]
[White "Harshavardhan G B"]
[Black "Bas Mas, Jose Joaquin"]
[WhiteFideId "25059009"]
[BlackFideId "22219064"]
[WhiteElo "1831"]
[BlackElo "2212"]
[Result "0-1"]
[Round "02"]
[TimeControl "180+1"]
[Date "2022.05.03"]
[WhiteClock "0:00:02"]
[BlackClock "0:00:35"]

1. e4 {[%clk 0:03:00]}  c5 {[%clk 0:02:59]} 2. Nf3 {[%clk 0:02:55]}  e6 {[%clk 0:03:00]} 3. d4 {[%clk 0:02:55]}  cxd4 {[%clk 0:03:00]} 4. Nxd4 {[%clk 0:02:55]}  a6 {[%clk 0:03:01]} 5. c4 {[%clk 0:02:54]}  Qc7 {[%clk 0:03:01]} 6. Nc3 {[%clk 0:02:54]}  Nf6 {[%clk 0:03:02]} 7. a3 {[%clk 0:02:54]}  d6 {[%clk 0:03:01]} 8. Be3 {[%clk 0:02:52]}  Be7 {[%clk 0:03:01]} 9. f3 {[%clk 0:02:51]}  O-O {[%clk 0:03:01]} 10. Bd3 {[%clk 0:02:50]}  b6 {[%clk 0:03:01]} 11. O-O {[%clk 0:02:50]}  Bb7 {[%clk 0:03:01]} 12. Rc1 {[%clk 0:02:51]}  Nbd7 {[%clk 0:03:01]} 13. b4 {[%clk 0:02:51]}  Rac8 {[%clk 0:03:01]} 14. Be2 {[%clk 0:02:51]}  Qb8 {[%clk 0:03:01]} 15. Kh1 {[%clk 0:02:52]}  Rfe8 {[%clk 0:03:00]} 16. Nb3 {[%clk 0:02:50]}  Bf8 {[%clk 0:02:58]} 17. Na4 {[%clk 0:02:49]}  d5 {[%clk 0:02:46]} 18. Bxb6 {[%clk 0:02:34]}  dxe4 {[%clk 0:02:37]} 19. Bg1 {[%clk 0:02:30]}  Rcd8 {[%clk 0:02:28]} 20. Qe1 {[%clk 0:02:23]}  exf3 {[%clk 0:02:26]} 21. Bxf3 {[%clk 0:02:22]}  Bxf3 {[%clk 0:02:25]} 22. Rxf3 {[%clk 0:02:23]}  Ne5 {[%clk 0:02:24]} 23. Rf1 {[%clk 0:02:06]}  Nd3 {[%clk 0:02:23]} 24. Qc3 {[%clk 0:02:04]}  Nxc1 {[%clk 0:02:22]} 25. Qxc1 {[%clk 0:02:05]}  Qe5 {[%clk 0:02:15]} 26. Nbc5 {[%clk 0:02:03]}  Bxc5 {[%clk 0:02:10]} 27. Nxc5 {[%clk 0:02:04]}  Ng4 {[%clk 0:02:03]} 28. Nxa6 {[%clk 0:01:48]}  Rd3 {[%clk 0:01:57]} 29. Nc5 {[%clk 0:01:45]}  Rc3 {[%clk 0:01:54]} 30. Qa1 {[%clk 0:01:44]}  Rd8 {[%clk 0:01:47]} 31. h3 {[%clk 0:01:39]}  Ne3 {[%clk 0:01:32]} 32. Re1 {[%clk 0:01:33]}  Nc2 {[%clk 0:01:32]} 33. Rxe5 {[%clk 0:01:02]}  Nxa1 {[%clk 0:01:32]} 34. Nb7 {[%clk 0:01:00]}  Rd1 {[%clk 0:01:29]} 35. Rc5 {[%clk 0:00:49]}  h5 {[%clk 0:01:28]} 36. Kh2 {[%clk 0:00:46]}  Nb3 {[%clk 0:01:22]} 37. Rc8+ {[%clk 0:00:23]}  Kh7 {[%clk 0:01:22]} 38. Ba7 {[%clk 0:00:19]}  Nd2 {[%clk 0:01:19]} 39. g4 {[%clk 0:00:18]}  h4 {[%clk 0:01:11]} 40. Bf2 {[%clk 0:00:15]}  Nf3+ {[%clk 0:01:00]} 41. Kg2 {[%clk 0:00:15]}  Rd2 {[%clk 0:01:00]} 42. Rd8 {[%clk 0:00:14]}  Re2 {[%clk 0:00:46]} 43. Nd6 {[%clk 0:00:10]}  Ng5 {[%clk 0:00:38]} 44. Kf1 {[%clk 0:00:07]}  Ra2 {[%clk 0:00:37]} 45. Nb5 {[%clk 0:00:03]}  Rc1+ {[%clk 0:00:37]} 46. Be1 {[%clk 0:00:04]}  Raa1 {[%clk 0:00:36]} 47. Kf2 {[%clk 0:00:02]}  Rxe1 {[%clk 0:00:35]} 0-1


[Site "https://www.chess.com"]

[Event "Titled Tuesday Blitz May 03 Early 2022"]
[White "Heinemann, Josefine"]
[Black "Aradhya, Garg"]
[WhiteFideId "12900460"]
[BlackFideId "25006746"]
[WhiteElo "2300"]
[BlackElo "2169"]
[Result "1/2-1/2"]
[Round "02"]
[TimeControl "180+1"]
[Date "2022.05.03"]
[WhiteClock "0:00:07"]
[BlackClock "0:00:12"]

1. Nf3 {[%clk 0:02:01]}  d5 {[%clk 0:02:59]} 2. g3 {[%clk 0:01:57]}  Nc6 {[%clk 0:02:58]} 3. d4 {[%clk 0:01:56]}  Bf5 {[%clk 0:02:58]} 4. Bg2 {[%clk 0:01:55]}  e6 {[%clk 0:02:58]} 5. O-O {[%clk 0:01:55]}  Be7 {[%clk 0:02:54]} 6. a3 {[%clk 0:01:39]}  Nf6 {[%clk 0:02:53]} 7. c4 {[%clk 0:01:37]}  O-O {[%clk 0:02:33]} 8. Nc3 {[%clk 0:01:31]}  dxc4 {[%clk 0:02:32]} 9. Bg5 {[%clk 0:01:27]}  h6 {[%clk 0:02:26]} 10. Bxf6 {[%clk 0:01:22]}  Bxf6 {[%clk 0:02:27]} 11. e4 {[%clk 0:01:23]}  Bg4 {[%clk 0:02:24]} 12. e5 {[%clk 0:01:23]}  Be7 {[%clk 0:02:24]} 13. Ne4 {[%clk 0:01:19]}  Bxf3 {[%clk 0:02:14]} 14. Qxf3 {[%clk 0:01:15]}  Qxd4 {[%clk 0:02:14]} 15. Rfd1 {[%clk 0:01:13]}  Qxe5 {[%clk 0:01:56]} 16. Re1 {[%clk 0:01:07]}  Qxb2 {[%clk 0:01:43]} 17. Rab1 {[%clk 0:00:52]}  Qxa3 {[%clk 0:01:38]} 18. Rxb7 {[%clk 0:00:48]}  Qxf3 {[%clk 0:01:36]} 19. Bxf3 {[%clk 0:00:49]}  Nd4 {[%clk 0:01:30]} 20. Bg2 {[%clk 0:00:48]}  Rfc8 {[%clk 0:01:29]} 21. Rd1 {[%clk 0:00:44]}  e5 {[%clk 0:01:16]} 22. f4 {[%clk 0:00:41]}  Rab8 {[%clk 0:01:04]} 23. Rxb8 {[%clk 0:00:35]}  Rxb8 {[%clk 0:01:05]} 24. fxe5 {[%clk 0:00:36]}  c5 {[%clk 0:00:46]} 25. Kf1 {[%clk 0:00:33]}  Rb2 {[%clk 0:00:37]} 26. Rc1 {[%clk 0:00:31]}  a5 {[%clk 0:00:28]} 27. Rxc4 {[%clk 0:00:30]}  Rb4 {[%clk 0:00:27]} 28. Rc1 {[%clk 0:00:27]}  c4 {[%clk 0:00:26]} 29. Nd6 {[%clk 0:00:23]}  Bxd6 {[%clk 0:00:19]} 30. exd6 {[%clk 0:00:24]}  Rb6 {[%clk 0:00:20]} 31. d7 {[%clk 0:00:22]}  Rd6 {[%clk 0:00:19]} 32. Rxc4 {[%clk 0:00:22]}  Rxd7 {[%clk 0:00:18]} 33. Rc8+ {[%clk 0:00:22]}  Kh7 {[%clk 0:00:17]} 34. Ra8 {[%clk 0:00:23]}  Nb3 {[%clk 0:00:16]} 35. Be4+ {[%clk 0:00:23]}  g6 {[%clk 0:00:16]} 36. Bc2 {[%clk 0:00:23]}  Nd4 {[%clk 0:00:15]} 37. Be4 {[%clk 0:00:20]}  Re7 {[%clk 0:00:15]} 38. Bd3 {[%clk 0:00:19]}  Re5 {[%clk 0:00:14]} 39. Bc4 {[%clk 0:00:18]}  Kg7 {[%clk 0:00:14]} 40. Ra7 {[%clk 0:00:19]}  Rf5+ {[%clk 0:00:14]} 41. Kg2 {[%clk 0:00:19]}  Nc6 {[%clk 0:00:13]} 42. Rc7 {[%clk 0:00:18]}  Ne5 {[%clk 0:00:13]} 43. Bd5 {[%clk 0:00:16]}  Nd3 {[%clk 0:00:13]} 44. Bb3 {[%clk 0:00:15]}  Ne1+ {[%clk 0:00:13]} 45. Kg1 {[%clk 0:00:15]}  Nf3+ {[%clk 0:00:13]} 46. Kg2 {[%clk 0:00:16]}  Ne1+ {[%clk 0:00:14]} 47. Kg1 {[%clk 0:00:16]}  Rf6 {[%clk 0:00:13]} 48. Re7 {[%clk 0:00:15]}  Nf3+ {[%clk 0:00:14]} 49. Kg2 {[%clk 0:00:16]}  Nd2 {[%clk 0:00:14]} 50. Bd5 {[%clk 0:00:15]}  Rf5 {[%clk 0:00:13]} 51. Ba2 {[%clk 0:00:15]}  a4 {[%clk 0:00:13]} 52. Ra7 {[%clk 0:00:14]}  Nb3 {[%clk 0:00:12]} 53. Rxa4 {[%clk 0:00:14]}  Nc1 {[%clk 0:00:12]} 54. Bc4 {[%clk 0:00:14]}  Rc5 {[%clk 0:00:12]} 55. Rb4 {[%clk 0:00:11]}  f5 {[%clk 0:00:13]} 56. Kf3 {[%clk 0:00:11]}  Kf6 {[%clk 0:00:13]} 57. Ke3 {[%clk 0:00:11]}  Ra5 {[%clk 0:00:08]} 58. Kd2 {[%clk 0:00:10]}  Na2 {[%clk 0:00:08]} 59. Rb6+ {[%clk 0:00:10]}  Kg5 {[%clk 0:00:08]} 60. h4+ {[%clk 0:00:07]}  Kg4 {[%clk 0:00:08]} 61. Rxg6+ {[%clk 0:00:06]}  Kh3 {[%clk 0:00:09]} 62. Rxh6 {[%clk 0:00:06]}  Kxg3 {[%clk 0:00:08]} 63. h5 {[%clk 0:00:06]}  Nb4 {[%clk 0:00:08]} 64. Rh8 {[%clk 0:00:05]}  f4 {[%clk 0:00:08]} 65. h6 {[%clk 0:00:06]}  Rh5 {[%clk 0:00:08]} 66. h7 {[%clk 0:00:04]}  Kf2 {[%clk 0:00:08]} 67. Rf8 {[%clk 0:00:03]}  Rxh7 {[%clk 0:00:08]} 68. Rxf4+ {[%clk 0:00:03]}  Kg3 {[%clk 0:00:09]} 69. Rf8 {[%clk 0:00:02]}  Rd7+ {[%clk 0:00:09]} 70. Kc3 {[%clk 0:00:02]}  Nd5+ {[%clk 0:00:09]} 71. Bxd5 {[%clk 0:00:03]}  Rxd5 {[%clk 0:00:09]} 72. Rc8 {[%clk 0:00:04]}  Rg5 {[%clk 0:00:09]} 73. Rc4 {[%clk 0:00:05]}  Rg6 {[%clk 0:00:09]} 74. Rd4 {[%clk 0:00:05]}  Kf3 {[%clk 0:00:09]} 75. Rd3+ {[%clk 0:00:05]}  Ke4 {[%clk 0:00:09]} 76. Rd4+ {[%clk 0:00:06]}  Ke5 {[%clk 0:00:10]} 77. Rc4 {[%clk 0:00:06]}  Rd6 {[%clk 0:00:10]} 78. Rb4 {[%clk 0:00:06]}  Ke6 {[%clk 0:00:10]} 79. Rc4 {[%clk 0:00:06]}  Kd7 {[%clk 0:00:11]} 80. Rd4 {[%clk 0:00:06]}  Kc6 {[%clk 0:00:11]} 81. Rxd6+ {[%clk 0:00:07]}  Kxd6 {[%clk 0:00:12]} 1/2-1/2


[Site "https://www.chess.com"]

[Event "Titled Tuesday Blitz May 03 Early 2022"]
[White "Hoffmann, Asa"]
[Black "Dang, Hoang Son"]
[WhiteFideId "2001470"]
[BlackFideId "12402435"]
[WhiteElo "2117"]
[BlackElo "2252"]
[Result "0-1"]
[Round "02"]
[TimeControl "180+1"]
[Date "2022.05.03"]
[WhiteClock "0:00:29"]
[BlackClock "0:00:05"]

1. d4 {[%clk 0:02:58]}  Nf6 {[%clk 0:02:59]} 2. Bg5 {[%clk 0:02:54]}  c5 {[%clk 0:02:58]} 3. d5 {[%clk 0:02:53]}  Qb6 {[%clk 0:02:58]} 4. Nc3 {[%clk 0:02:52]}  d6 {[%clk 0:02:55]} 5. e4 {[%clk 0:02:50]}  g6 {[%clk 0:02:51]} 6. Qc1 {[%clk 0:02:35]}  Bg7 {[%clk 0:02:49]} 7. Nf3 {[%clk 0:02:34]}  O-O {[%clk 0:02:46]} 8. Be2 {[%clk 0:02:33]}  e6 {[%clk 0:02:45]} 9. O-O {[%clk 0:02:31]}  Re8 {[%clk 0:01:26]} 10. a4 {[%clk 0:02:27]}  a6 {[%clk 0:01:07]} 11. a5 {[%clk 0:02:25]}  Qc7 {[%clk 0:01:06]} 12. Qf4 {[%clk 0:02:20]}  Nh5 {[%clk 0:01:01]} 13. Qh4 {[%clk 0:02:19]}  Bxc3 {[%clk 0:00:57]} 14. bxc3 {[%clk 0:02:18]}  exd5 {[%clk 0:00:57]} 15. Nd2 {[%clk 0:02:02]}  Ng7 {[%clk 0:00:44]} 16. Bf6 {[%clk 0:01:59]}  Nd7 {[%clk 0:00:43]} 17. Bg5 {[%clk 0:01:45]}  f5 {[%clk 0:00:30]} 18. f3 {[%clk 0:01:38]}  Nf8 {[%clk 0:00:30]} 19. c4 {[%clk 0:01:34]}  dxe4 {[%clk 0:00:25]} 20. fxe4 {[%clk 0:01:34]}  Be6 {[%clk 0:00:23]} 21. Bd3 {[%clk 0:01:33]}  Qd7 {[%clk 0:00:13]} 22. Rab1 {[%clk 0:01:31]}  Qc6 {[%clk 0:00:12]} 23. Bf6 {[%clk 0:01:27]}  Nd7 {[%clk 0:00:11]} 24. Bc3 {[%clk 0:01:27]}  Ne5 {[%clk 0:00:11]} 25. Nf3 {[%clk 0:01:25]}  Qc7 {[%clk 0:00:09]} 26. Nxe5 {[%clk 0:01:24]}  dxe5 {[%clk 0:00:10]} 27. Qf6 {[%clk 0:01:24]}  Nh5 {[%clk 0:00:09]} 28. Qxe5 {[%clk 0:01:24]}  Qxe5 {[%clk 0:00:10]} 29. Bxe5 {[%clk 0:01:23]}  fxe4 {[%clk 0:00:10]} 30. Bxe4 {[%clk 0:01:21]}  Bxc4 {[%clk 0:00:10]} 31. Bxb7 {[%clk 0:01:18]}  Bxf1 {[%clk 0:00:10]} 32. Bxa8 {[%clk 0:01:17]}  Rxa8 {[%clk 0:00:08]} 33. Kxf1 {[%clk 0:01:16]}  Re8 {[%clk 0:00:08]} 34. Bd6 {[%clk 0:01:15]}  c4 {[%clk 0:00:08]} 35. Rb6 {[%clk 0:01:13]}  Nf6 {[%clk 0:00:08]} 36. Rxa6 {[%clk 0:01:12]}  Ne4 {[%clk 0:00:09]} 37. Bf4 {[%clk 0:01:11]}  Rf8 {[%clk 0:00:09]} 38. g3 {[%clk 0:01:08]}  g5 {[%clk 0:00:09]} 39. Rc6 {[%clk 0:01:06]}  gxf4 {[%clk 0:00:09]} 40. gxf4 {[%clk 0:01:06]}  Rxf4+ {[%clk 0:00:10]} 41. Kg2 {[%clk 0:01:06]}  Rf2+ {[%clk 0:00:09]} 42. Kh3 {[%clk 0:01:06]}  Rxc2 {[%clk 0:00:10]} 43. a6 {[%clk 0:01:06]}  Ra2 {[%clk 0:00:10]} 44. Rxc4 {[%clk 0:01:05]}  Ng5+ {[%clk 0:00:09]} 45. Kg4 {[%clk 0:01:04]}  Ne6 {[%clk 0:00:08]} 46. Rc6 {[%clk 0:01:03]}  Kf7 {[%clk 0:00:08]} 47. h4 {[%clk 0:01:02]}  Ra4+ {[%clk 0:00:07]} 48. Kf5 {[%clk 0:01:01]}  Ra5+ {[%clk 0:00:06]} 49. Ke4 {[%clk 0:01:00]}  h5 {[%clk 0:00:05]} 50. Rb6 {[%clk 0:00:58]}  Ra4+ {[%clk 0:00:05]} 51. Ke5 {[%clk 0:00:58]}  Ra5+ {[%clk 0:00:05]} 52. Ke4 {[%clk 0:00:58]}  Nc5+ {[%clk 0:00:04]} 53. Kf3 {[%clk 0:00:56]}  Nxa6 {[%clk 0:00:04]} 54. Rh6 {[%clk 0:00:55]}  Kg7 {[%clk 0:00:04]} 55. Rc6 {[%clk 0:00:53]}  Nc5 {[%clk 0:00:04]} 56. Kg3 {[%clk 0:00:52]}  Ne4+ {[%clk 0:00:04]} 57. Kf4 {[%clk 0:00:53]}  Nf6 {[%clk 0:00:05]} 58. Kf3 {[%clk 0:00:51]}  Ra4 {[%clk 0:00:05]} 59. Kg3 {[%clk 0:00:51]}  Rg4+ {[%clk 0:00:05]} 60. Kh3 {[%clk 0:00:50]}  Nd5 {[%clk 0:00:06]} 61. Rc5 {[%clk 0:00:50]}  Nf4+ {[%clk 0:00:06]} 62. Kh2 {[%clk 0:00:50]}  Rxh4+ {[%clk 0:00:07]} 63. Kg3 {[%clk 0:00:50]}  Rg4+ {[%clk 0:00:08]} 64. Kf3 {[%clk 0:00:50]}  Kg6 {[%clk 0:00:08]} 65. Rc6+ {[%clk 0:00:49]}  Kf5 {[%clk 0:00:08]} 66. Rc5+ {[%clk 0:00:48]}  Kg6 {[%clk 0:00:08]} 67. Rc6+ {[%clk 0:00:48]}  Kg5 {[%clk 0:00:08]} 68. Rc5+ {[%clk 0:00:48]}  Kh4 {[%clk 0:00:09]} 69. Rc4 {[%clk 0:00:47]}  Nh3 {[%clk 0:00:08]} 70. Rc5 {[%clk 0:00:44]}  Rf4+ {[%clk 0:00:07]} 71. Kg2 {[%clk 0:00:44]}  Rf2+ {[%clk 0:00:07]} 72. Kh1 {[%clk 0:00:43]}  Ra2 {[%clk 0:00:07]} 73. Rxh5+ {[%clk 0:00:42]}  Kg4 {[%clk 0:00:07]} 74. Rh8 {[%clk 0:00:40]}  Ng5 {[%clk 0:00:05]} 75. Rg8 {[%clk 0:00:40]}  Kf4 {[%clk 0:00:06]} 76. Kg1 {[%clk 0:00:38]}  Ne4 {[%clk 0:00:03]} 77. Kf1 {[%clk 0:00:37]}  Ng3+ {[%clk 0:00:03]} 78. Ke1 {[%clk 0:00:37]}  Nf5 {[%clk 0:00:03]} 79. Kd1 {[%clk 0:00:37]}  Ne3+ {[%clk 0:00:04]} 80. Kc1 {[%clk 0:00:36]}  Ke4 {[%clk 0:00:04]} 81. Rd8 {[%clk 0:00:35]}  Nd5 {[%clk 0:00:04]} 82. Kb1 {[%clk 0:00:34]}  Nc3+ {[%clk 0:00:04]} 83. Kc1 {[%clk 0:00:33]}  Nb5 {[%clk 0:00:03]} 84. Rb8 {[%clk 0:00:31]}  Nd4 {[%clk 0:00:03]} 85. Rb4 {[%clk 0:00:30]}  Rh2 {[%clk 0:00:03]} 86. Kd1 {[%clk 0:00:29]}  Kd3 {[%clk 0:00:03]} 87. Ke1 {[%clk 0:00:29]}  Nc2+ {[%clk 0:00:04]} 88. Kf1 {[%clk 0:00:29]}  Nxb4 {[%clk 0:00:05]} 0-1


[Site "https://www.chess.com"]

[Event "Titled Tuesday Blitz May 03 Early 2022"]
[White "Itkis, Boris"]
[Black "Martinovici, Ilia"]
[WhiteFideId "1209167"]
[BlackFideId "13907034"]
[WhiteElo "2207"]
[BlackElo "2282"]
[Result "0-1"]
[Round "02"]
[TimeControl "180+1"]
[Date "2022.05.03"]
[WhiteClock "0:00:16"]
[BlackClock "0:00:28"]

1. Nf3 {[%clk 0:03:00]}  d5 {[%clk 0:02:59]} 2. e3 {[%clk 0:03:00]}  c5 {[%clk 0:02:59]} 3. b3 {[%clk 0:03:01]}  Nc6 {[%clk 0:03:00]} 4. Bb2 {[%clk 0:03:02]}  Bg4 {[%clk 0:03:00]} 5. Be2 {[%clk 0:03:01]}  Bxf3 {[%clk 0:02:57]} 6. Bxf3 {[%clk 0:03:02]}  e5 {[%clk 0:02:58]} 7. O-O {[%clk 0:03:02]}  Nf6 {[%clk 0:02:55]} 8. d3 {[%clk 0:03:01]}  Be7 {[%clk 0:02:55]} 9. Nd2 {[%clk 0:03:01]}  O-O {[%clk 0:02:55]} 10. g3 {[%clk 0:03:01]}  Ne8 {[%clk 0:02:46]} 11. Bg2 {[%clk 0:03:01]}  f5 {[%clk 0:02:46]} 12. e4 {[%clk 0:02:53]}  fxe4 {[%clk 0:02:45]} 13. dxe4 {[%clk 0:02:53]}  d4 {[%clk 0:02:46]} 14. a4 {[%clk 0:02:51]}  Nd6 {[%clk 0:02:45]} 15. Qe2 {[%clk 0:02:50]}  Qd7 {[%clk 0:02:41]} 16. Nc4 {[%clk 0:02:41]}  Qe6 {[%clk 0:02:41]} 17. Nxd6 {[%clk 0:02:39]}  Bxd6 {[%clk 0:02:41]} 18. Rad1 {[%clk 0:02:24]}  Rac8 {[%clk 0:02:39]} 19. Bc1 {[%clk 0:02:23]}  Nb4 {[%clk 0:02:31]} 20. f4 {[%clk 0:02:19]}  c4 {[%clk 0:02:28]} 21. fxe5 {[%clk 0:02:04]}  Bxe5 {[%clk 0:02:22]} 22. Bf4 {[%clk 0:01:31]}  d3 {[%clk 0:02:04]} 23. cxd3 {[%clk 0:01:28]}  cxd3 {[%clk 0:02:05]} 24. Qh5 {[%clk 0:01:27]}  Bd4+ {[%clk 0:01:31]} 25. Kh1 {[%clk 0:01:26]}  Qxb3 {[%clk 0:01:23]} 26. Rb1 {[%clk 0:01:18]}  Qxa4 {[%clk 0:01:19]} 27. Bd6 {[%clk 0:01:00]}  Rxf1+ {[%clk 0:01:13]} 28. Rxf1 {[%clk 0:00:59]}  g6 {[%clk 0:01:03]} 29. Qh3 {[%clk 0:00:37]}  Re8 {[%clk 0:00:57]} 30. e5 {[%clk 0:00:20]}  d2 {[%clk 0:00:46]} 31. Bxb4 {[%clk 0:00:18]}  d1=Q {[%clk 0:00:43]} 32. Rxd1 {[%clk 0:00:16]}  Qxd1+ {[%clk 0:00:41]} 33. Bf1 {[%clk 0:00:17]}  Qf3+ {[%clk 0:00:27]} 34. Bg2 {[%clk 0:00:16]}  Qf2 {[%clk 0:00:28]} 0-1


[Site "https://www.chess.com"]